[Event "Late-Titled-Tuesday-Blitz-February-06-2024"]
[Site "Chess.com"]
[Date "2024.02.06"]
[Round "8"]
[White "Karttunen"]
[Black "Rawnsdale"]
[Result "1/2-1/2"]
[WhiteElo "2639"]
[BlackElo "2530"]
[TimeControl "180+1"]
[EndTime "15:30:12 PST"]
[Termination "Game drawn by repetition"]

1. e4 {[%clk 0:03:00.9]} 1... c6 {[%clk 0:03:00]} 2. d4 {[%clk 0:03:00.7]} 2...
d5 {[%clk 0:02:59.9]} 3. e5 {[%clk 0:03:00.1]} 3... c5 {[%clk 0:03:00.2]} 4. Nf3
{[%clk 0:02:57.1]} 4... Nc6 {[%clk 0:02:59.9]} 5. dxc5 {[%clk 0:02:55.4]} 5...
Bg4 {[%clk 0:02:59.9]} 6. c3 {[%clk 0:02:55.5]} 6... a5 {[%clk 0:02:54.2]} 7.
Nbd2 {[%clk 0:02:45]} 7... e6 {[%clk 0:02:53.2]} 8. h3 {[%clk 0:02:42.1]} 8...
Bh5 {[%clk 0:02:50]} 9. Nb3 {[%clk 0:02:23.1]} 9... a4 {[%clk 0:02:45.8]} 10.
Nbd4 {[%clk 0:02:22.8]} 10... Bxc5 {[%clk 0:02:44.3]} 11. g4 {[%clk 0:02:16]}
11... Bg6 {[%clk 0:02:40.7]} 12. Bb5 {[%clk 0:02:15.5]} 12... Qb6 {[%clk
0:02:38.6]} 13. Bxa4 {[%clk 0:02:11.3]} 13... Ne7 {[%clk 0:02:35.6]} 14. O-O
{[%clk 0:02:08.5]} 14... O-O {[%clk 0:02:33]} 15. Re1 {[%clk 0:02:05.7]} 15...
Be4 {[%clk 0:02:28.9]} 16. Bxc6 {[%clk 0:01:31]} 16... Nxc6 {[%clk 0:02:25.1]}
17. Ng5 {[%clk 0:01:20.2]} 17... Nxd4 {[%clk 0:02:18.4]} 18. Nxe4 {[%clk
0:01:17]} 18... dxe4 {[%clk 0:02:16.9]} 19. cxd4 {[%clk 0:01:16.9]} 19... Bxd4
{[%clk 0:02:16.5]} 20. Rxe4 {[%clk 0:01:17.3]} 20... Bxf2+ {[%clk 0:02:14]} 21.
Kg2 {[%clk 0:01:17.7]} 21... Rad8 {[%clk 0:02:11.3]} 22. Qe2 {[%clk 0:01:17.7]}
22... Bc5 {[%clk 0:02:05.5]} 23. Bg5 {[%clk 0:01:15.6]} 23... Rd4 {[%clk
0:01:59.9]} 24. b3 {[%clk 0:01:07.4]} 24... Qc6 {[%clk 0:01:55.6]} 25. Kf3
{[%clk 0:00:49.3]} 25... f5 {[%clk 0:01:54.5]} 26. exf6 {[%clk 0:00:48]} 26...
gxf6 {[%clk 0:01:53.4]} 27. Bh6 {[%clk 0:00:38.9]} 27... f5 {[%clk 0:01:40.3]}
28. gxf5 {[%clk 0:00:35.2]} 28... Rxf5+ {[%clk 0:01:30.5]} 29. Bf4 {[%clk
0:00:35.1]} 29... e5 {[%clk 0:01:21.1]} 30. Rg1+ {[%clk 0:00:28.4]} 30... Kf8
{[%clk 0:01:14.2]} 31. Rg4 {[%clk 0:00:28.1]} 31... Qxe4+ {[%clk 0:00:54.7]} 32.
Qxe4 {[%clk 0:00:28]} 32... Rxe4 {[%clk 0:00:55.6]} 33. Kxe4 {[%clk 0:00:28]}
33... Rxf4+ {[%clk 0:00:55.9]} 34. Rxf4+ {[%clk 0:00:28.6]} 34... exf4 {[%clk
0:00:56.8]} 35. Kxf4 {[%clk 0:00:29.2]} 35... Kf7 {[%clk 0:00:57]} 36. Kf5
{[%clk 0:00:29.4]} 36... Ke7 {[%clk 0:00:51.2]} 37. Ke5 {[%clk 0:00:28.1]} 37...
Be3 {[%clk 0:00:50.4]} 38. b4 {[%clk 0:00:27.6]} 38... Kd7 {[%clk 0:00:50.3]}
39. Kd5 {[%clk 0:00:26]} 39... Kc7 {[%clk 0:00:50.1]} 40. a4 {[%clk 0:00:25.8]}
40... Kb6 {[%clk 0:00:50.5]} 41. Kc4 {[%clk 0:00:25.7]} 41... Kc6 {[%clk
0:00:49.1]} 42. a5 {[%clk 0:00:24.5]} 42... Bf4 {[%clk 0:00:44.1]} 43. b5+
{[%clk 0:00:23.9]} 43... Kc7 {[%clk 0:00:43.3]} 44. Kc5 {[%clk 0:00:21.3]} 44...
Be3+ {[%clk 0:00:43]} 45. Kc4 {[%clk 0:00:21.4]} 45... Ba7 {[%clk 0:00:36.2]}
46. a6 {[%clk 0:00:20.4]} 46... b6 {[%clk 0:00:35.8]} 47. Kd5 {[%clk 0:00:20.7]}
47... Kd7 {[%clk 0:00:36.1]} 48. Ke5 {[%clk 0:00:21.1]} 48... Bb8+ {[%clk
0:00:33.4]} 49. Kd5 {[%clk 0:00:21.6]} 49... Ba7 {[%clk 0:00:30.8]} 50. Ke5
{[%clk 0:00:21.9]} 50... h6 {[%clk 0:00:28]} 51. Kd5 {[%clk 0:00:20.7]} 51...
Bb8 {[%clk 0:00:27.5]} 52. Ke4 {[%clk 0:00:20.1]} 52... Kc8 {[%clk 0:00:27.1]}
53. Kd4 {[%clk 0:00:19.1]} 53... Kd8 {[%clk 0:00:16.8]} 54. Ke4 {[%clk
0:00:18.9]} 54... Kd7 {[%clk 0:00:16.8]} 55. Kd5 {[%clk 0:00:19.2]} 55... Ba7
{[%clk 0:00:16.1]} 56. Ke5 {[%clk 0:00:18.9]} 56... Bb8+ {[%clk 0:00:15.6]} 57.
Kd5 {[%clk 0:00:19.3]} 57... Kc7 {[%clk 0:00:13.4]} 58. Ke6 {[%clk 0:00:19.3]}
58... Ba7 {[%clk 0:00:13.5]} 59. Ke7 {[%clk 0:00:19.6]} 59... Bb8 {[%clk
0:00:12.9]} 60. Ke6 {[%clk 0:00:19.7]} 60... Kd8 {[%clk 0:00:12]} 61. h4 {[%clk
0:00:13.4]} 61... Kc7 {[%clk 0:00:10.4]} 62. h5 {[%clk 0:00:13.6]} 62... Kd8
{[%clk 0:00:09.8]} 63. Kf6 {[%clk 0:00:13.7]} 63... Kc8 {[%clk 0:00:08.9]} 64.
Kg6 {[%clk 0:00:14.1]} 64... Bf4 {[%clk 0:00:09.1]} 65. Kf5 {[%clk 0:00:13.7]}
65... Be3 {[%clk 0:00:08.2]} 66. Ke6 {[%clk 0:00:13.8]} 66... Kb8 {[%clk
0:00:08.4]} 67. Kd6 {[%clk 0:00:14.3]} 67... Ka7 {[%clk 0:00:08.1]} 68. Kc7
{[%clk 0:00:14.7]} 68... Bg5 {[%clk 0:00:08]} 69. Kc8 {[%clk 0:00:15.2]} 69...
Bf4 {[%clk 0:00:08.1]} 70. Kd7 {[%clk 0:00:15.4]} 70... Kb8 {[%clk 0:00:08.2]}
71. Kc6 {[%clk 0:00:15.9]} 71... Be3 {[%clk 0:00:08.4]} 72. Kd7 {[%clk
0:00:15.9]} 72... Ka7 {[%clk 0:00:07.5]} 73. Kc8 {[%clk 0:00:16.1]} 73... Bg5
{[%clk 0:00:07.5]} 74. Kc7 {[%clk 0:00:16.4]} 74... Be3 {[%clk 0:00:06.5]} 75.
Kc8 {[%clk 0:00:16.8]} 75... Bc5 {[%clk 0:00:06.5]} 76. Kc7 {[%clk 0:00:17.2]}
76... Be3 {[%clk 0:00:07]} 77. Kc8 {[%clk 0:00:17.7]} 1/2-1/2

[Event "Late-Titled-Tuesday-Blitz-February-06-2024"]
[Site "Chess.com"]
[Date "2024.02.06"]
[Round "8"]
[White "rasmussvane"]
[Black "chenxiaoyuer"]
[Result "1-0"]
[WhiteElo "2960"]
[BlackElo "2759"]
[TimeControl "180+1"]
[EndTime "15:30:13 PST"]
[Termination "rasmussvane won by checkmate"]

1. Nf3 {[%clk 0:03:00.5]} 1... Nf6 {[%clk 0:03:00]} 2. g3 {[%clk 0:02:59.7]}
2... g6 {[%clk 0:03:00.6]} 3. Bg2 {[%clk 0:02:59.6]} 3... Bg7 {[%clk 0:03:01.5]}
4. O-O {[%clk 0:02:59.2]} 4... O-O {[%clk 0:03:02.4]} 5. d4 {[%clk 0:02:59.7]}
5... d6 {[%clk 0:03:00.3]} 6. Re1 {[%clk 0:02:59.8]} 6... d5 {[%clk 0:02:34]} 7.
c4 {[%clk 0:02:57.9]} 7... c6 {[%clk 0:02:32.7]} 8. Qb3 {[%clk 0:02:56.9]} 8...
Qb6 {[%clk 0:02:20.5]} 9. Nc3 {[%clk 0:02:54.5]} 9... Bf5 {[%clk 0:02:01.9]} 10.
h3 {[%clk 0:02:31.2]} 10... Na6 {[%clk 0:01:40.9]} 11. Bd2 {[%clk 0:02:07.3]}
11... dxc4 {[%clk 0:01:28.3]} 12. Qxc4 {[%clk 0:02:06.7]} 12... Qxb2 {[%clk
0:01:28.4]} 13. e4 {[%clk 0:01:59.4]} 13... Nxe4 {[%clk 0:01:26]} 14. Nxe4
{[%clk 0:01:36.9]} 14... Bxe4 {[%clk 0:01:26.9]} 15. Bc3 {[%clk 0:00:34.7]}
15... Bd5 {[%clk 0:01:15.3]} 16. Bxb2 {[%clk 0:00:22.9]} 16... Bxc4 {[%clk
0:01:15.4]} 17. Rxe7 {[%clk 0:00:23.1]} 17... b5 {[%clk 0:01:00.5]} 18. Ne5
{[%clk 0:00:21.6]} 18... Bxe5 {[%clk 0:00:57.8]} 19. dxe5 {[%clk 0:00:21.4]}
19... Nb4 {[%clk 0:00:54]} 20. Bd4 {[%clk 0:00:20.6]} 20... Bd5 {[%clk
0:00:48.8]} 21. Bc5 {[%clk 0:00:15.6]} 21... a5 {[%clk 0:00:39.1]} 22. a3 {[%clk
0:00:13.2]} 22... Nd3 {[%clk 0:00:36.1]} 23. Bd6 {[%clk 0:00:13.5]} 23... Bxg2
{[%clk 0:00:33.7]} 24. Kxg2 {[%clk 0:00:14.4]} 24... c5 {[%clk 0:00:34.3]} 25.
Rb7 {[%clk 0:00:10.4]} 25... b4 {[%clk 0:00:31.9]} 26. Rd1 {[%clk 0:00:09.4]}
26... Nb2 {[%clk 0:00:29.8]} 27. Rc1 {[%clk 0:00:07.6]} 27... Rfc8 {[%clk
0:00:27.4]} 28. Rxc5 {[%clk 0:00:06.1]} 28... Rxc5 {[%clk 0:00:22.3]} 29. Bxc5
{[%clk 0:00:07]} 29... Nd3 {[%clk 0:00:22.3]} 30. axb4 {[%clk 0:00:06.3]} 30...
axb4 {[%clk 0:00:22.2]} 31. Bxb4 {[%clk 0:00:06.6]} 31... Nxe5 {[%clk
0:00:22.9]} 32. Bc3 {[%clk 0:00:06.4]} 32... Nc6 {[%clk 0:00:22.8]} 33. Rc7
{[%clk 0:00:06]} 33... Nd8 {[%clk 0:00:21.7]} 34. Rc4 {[%clk 0:00:05.9]} 34...
Ne6 {[%clk 0:00:21.3]} 35. Bd2 {[%clk 0:00:06]} 35... Re8 {[%clk 0:00:20.7]} 36.
Be3 {[%clk 0:00:06.5]} 36... Nf8 {[%clk 0:00:21]} 37. g4 {[%clk 0:00:06.9]}
37... Nd7 {[%clk 0:00:21]} 38. Kg3 {[%clk 0:00:07.5]} 38... Nf8 {[%clk
0:00:21.4]} 39. h4 {[%clk 0:00:07.6]} 39... Ra8 {[%clk 0:00:18.7]} 40. h5 {[%clk
0:00:08.1]} 40... Ne6 {[%clk 0:00:18.7]} 41. Rb4 {[%clk 0:00:07.6]} 41... Re8
{[%clk 0:00:11.6]} 42. h6 {[%clk 0:00:08]} 42... Rf8 {[%clk 0:00:09.5]} 43. Rb7
{[%clk 0:00:07.3]} 43... Re8 {[%clk 0:00:08.6]} 44. Ra7 {[%clk 0:00:06.4]} 44...
Rc8 {[%clk 0:00:09]} 45. f4 {[%clk 0:00:06.3]} 45... Rd8 {[%clk 0:00:09.4]} 46.
f5 {[%clk 0:00:06.5]} 46... Nf8 {[%clk 0:00:09.8]} 47. Kf3 {[%clk 0:00:06]}
47... Re8 {[%clk 0:00:10.3]} 48. Bd4 {[%clk 0:00:06.2]} 48... Rc8 {[%clk
0:00:10.9]} 49. Ke4 {[%clk 0:00:06.5]} 49... Re8+ {[%clk 0:00:11.6]} 50. Kd5
{[%clk 0:00:06.9]} 50... Rd8+ {[%clk 0:00:12.3]} 51. Kc4 {[%clk 0:00:07.5]}
51... Rc8+ {[%clk 0:00:13.1]} 52. Kd3 {[%clk 0:00:08.1]} 52... Re8 {[%clk
0:00:13.8]} 53. Bc5 {[%clk 0:00:06.1]} 53... Rc8 {[%clk 0:00:13.9]} 54. Be7
{[%clk 0:00:05.4]} 54... Re8 {[%clk 0:00:14]} 55. Kd4 {[%clk 0:00:05.2]} 55...
Rc8 {[%clk 0:00:13.4]} 56. Ke5 {[%clk 0:00:05.4]} 56... Re8 {[%clk 0:00:13.1]}
57. Kf6 {[%clk 0:00:05.5]} 57... Nd7+ {[%clk 0:00:12.6]} 58. Rxd7 {[%clk
0:00:05.2]} 58... Rc8 {[%clk 0:00:11.4]} 59. Rd8+ {[%clk 0:00:05.1]} 59... Rxd8
{[%clk 0:00:11.8]} 60. Bxd8 {[%clk 0:00:06]} 60... Kf8 {[%clk 0:00:12.3]} 61.
Be7+ {[%clk 0:00:05.3]} 61... Kg8 {[%clk 0:00:12.8]} 62. Bd6 {[%clk 0:00:03.9]}
62... gxf5 {[%clk 0:00:10.2]} 63. gxf5 {[%clk 0:00:04.5]} 63... Kh8 {[%clk
0:00:10.8]} 64. Ke7 {[%clk 0:00:05]} 64... Kg8 {[%clk 0:00:10.7]} 65. Bf4 {[%clk
0:00:05.1]} 65... Kh8 {[%clk 0:00:10.5]} 66. Kf8 {[%clk 0:00:03.2]} 66... f6
{[%clk 0:00:09.7]} 67. Ke7 {[%clk 0:00:03.5]} 67... Kg8 {[%clk 0:00:08.7]} 68.
Kxf6 {[%clk 0:00:04]} 68... Kh8 {[%clk 0:00:09.6]} 69. Ke7 {[%clk 0:00:04.3]}
69... Kg8 {[%clk 0:00:10.5]} 70. f6 {[%clk 0:00:04.7]} 70... Kh8 {[%clk
0:00:11.4]} 71. Be3 {[%clk 0:00:04.8]} 71... Kg8 {[%clk 0:00:10.9]} 72. f7+
{[%clk 0:00:05.3]} 72... Kh8 {[%clk 0:00:11.8]} 73. f8=Q# {[%clk 0:00:06]} 1-0

[Event "Late-Titled-Tuesday-Blitz-February-06-2024"]
[Site "Chess.com"]
[Date "2024.02.06"]
[Round "8"]
[White "karinachess1"]
[Black "temus_galaktionov"]
[Result "0-1"]
[WhiteElo "2680"]
[BlackElo "2875"]
[TimeControl "180+1"]
[EndTime "15:30:15 PST"]
[Termination "temus_galaktionov won by resignation"]

1. d4 {[%clk 0:03:00.9]} 1... c6 {[%clk 0:03:00.9]} 2. c4 {[%clk 0:02:59.6]}
2... d6 {[%clk 0:03:01.8]} 3. Nf3 {[%clk 0:02:57.9]} 3... g6 {[%clk 0:03:02.7]}
4. Nc3 {[%clk 0:02:57.6]} 4... Bg7 {[%clk 0:03:03.2]} 5. g3 {[%clk 0:02:58.1]}
5... Nd7 {[%clk 0:03:03.2]} 6. Bg2 {[%clk 0:02:58.4]} 6... Ngf6 {[%clk
0:03:03.9]} 7. O-O {[%clk 0:02:58.8]} 7... O-O {[%clk 0:03:04.6]} 8. e4 {[%clk
0:02:59]} 8... e5 {[%clk 0:03:05.1]} 9. h3 {[%clk 0:02:59.1]} 9... a5 {[%clk
0:03:05.3]} 10. Be3 {[%clk 0:02:59.1]} 10... exd4 {[%clk 0:03:05.5]} 11. Nxd4
{[%clk 0:02:59.3]} 11... Re8 {[%clk 0:03:05.7]} 12. Qc2 {[%clk 0:02:59.1]} 12...
Nc5 {[%clk 0:03:06.3]} 13. Rfe1 {[%clk 0:02:54.2]} 13... a4 {[%clk 0:03:06.2]}
14. Rad1 {[%clk 0:02:51.9]} 14... Qa5 {[%clk 0:03:06.4]} 15. a3 {[%clk 0:02:49]}
15... Bd7 {[%clk 0:03:05.4]} 16. Kh2 {[%clk 0:02:48]} 16... Rad8 {[%clk
0:03:04.6]} 17. f4 {[%clk 0:02:47]} 17... h5 {[%clk 0:03:03.5]} 18. Bf2 {[%clk
0:02:33]} 18... Bc8 {[%clk 0:03:03.5]} 19. Nf3 {[%clk 0:01:57.3]} 19... Re7
{[%clk 0:03:00.1]} 20. e5 {[%clk 0:01:53.9]} 20... Bf5 {[%clk 0:02:57.6]} 21.
Qe2 {[%clk 0:01:45.4]} 21... Nfe4 {[%clk 0:02:41.5]} 22. Nxe4 {[%clk 0:01:40.7]}
22... Nxe4 {[%clk 0:02:42.4]} 23. exd6 {[%clk 0:01:35.5]} 23... Re6 {[%clk
0:02:36.7]} 24. Ne5 {[%clk 0:00:57.1]} 24... Nxf2 {[%clk 0:02:30.2]} 25. Qxf2
{[%clk 0:00:58]} 25... Rexd6 {[%clk 0:02:28.6]} 26. Rxd6 {[%clk 0:00:55.6]}
26... Rxd6 {[%clk 0:02:29.5]} 27. g4 {[%clk 0:00:47.8]} 27... hxg4 {[%clk
0:02:17.8]} 28. hxg4 {[%clk 0:00:48.7]} 28... Be6 {[%clk 0:02:15.3]} 29. Re2
{[%clk 0:00:47.2]} 29... Rd1 {[%clk 0:02:09.6]} 30. Qg3 {[%clk 0:00:43.9]} 30...
Rd2 {[%clk 0:02:02.7]} 31. Qf2 {[%clk 0:00:38.4]} 31... Rxe2 {[%clk 0:02:01.5]}
32. Qxe2 {[%clk 0:00:39.3]} 32... g5 {[%clk 0:02:00]} 33. Nd3 {[%clk 0:00:33.2]}
33... gxf4 {[%clk 0:01:59.2]} 34. Nxf4 {[%clk 0:00:25.1]} 34... Qe5 {[%clk
0:01:57.6]} 35. Qd2 {[%clk 0:00:17]} 35... Bxc4 {[%clk 0:01:46.6]} 36. Kg3
{[%clk 0:00:14.3]} 36... Bf6 {[%clk 0:01:42.2]} 37. Bf3 {[%clk 0:00:05.9]} 37...
Qxb2 {[%clk 0:01:36.1]} 38. Qa5 {[%clk 0:00:05.3]} 38... Qe5 {[%clk 0:01:21.2]}
39. Qxa4 {[%clk 0:00:05.4]} 39... Ba6 {[%clk 0:01:14.6]} 40. Qb4 {[%clk
0:00:05]} 40... Bg5 {[%clk 0:01:12.5]} 41. Qd2 {[%clk 0:00:05]} 41... Bc4 {[%clk
0:01:08.4]} 42. Bg2 {[%clk 0:00:05.4]} 42... Be6 {[%clk 0:01:06]} 43. Bf3 {[%clk
0:00:04.7]} 43... Kf8 {[%clk 0:01:03.8]} 44. Qb4+ {[%clk 0:00:04.8]} 44... Kg7
{[%clk 0:01:03.5]} 45. Qe4 {[%clk 0:00:04.5]} 45... Qxe4 {[%clk 0:01:02.4]} 46.
Bxe4 {[%clk 0:00:05.4]} 46... Bd7 {[%clk 0:00:58.2]} 47. Nd3 {[%clk 0:00:04.9]}
47... Be7 {[%clk 0:00:54.6]} 48. a4 {[%clk 0:00:04.4]} 48... Bd6+ {[%clk
0:00:54.2]} 49. Kf3 {[%clk 0:00:04.5]} 49... Kf6 {[%clk 0:00:54]} 50. Nb2 {[%clk
0:00:03.8]} 50... Be6 {[%clk 0:00:53.7]} 51. a5 {[%clk 0:00:03.2]} 51... Bd7
{[%clk 0:00:48]} 52. Nc4 {[%clk 0:00:02.8]} 52... Bb4 {[%clk 0:00:47.8]} 53. Nb6
{[%clk 0:00:03.3]} 53... Be6 {[%clk 0:00:47.1]} 54. a6 {[%clk 0:00:03.7]} 54...
bxa6 {[%clk 0:00:47.3]} 55. Bxc6 {[%clk 0:00:04.2]} 55... Kg5 {[%clk 0:00:45.9]}
56. Bd7 {[%clk 0:00:03.5]} 56... Bb3 {[%clk 0:00:43.5]} 57. Ba4 {[%clk
0:00:03.2]} 57... Ba2 {[%clk 0:00:41.6]} 58. Nd7 {[%clk 0:00:02.7]} 58... Be6
{[%clk 0:00:39.5]} 59. Ne5 {[%clk 0:00:02.5]} 59... Bc3 {[%clk 0:00:38.4]} 60.
Nd3 {[%clk 0:00:02.4]} 60... Bxg4+ {[%clk 0:00:38.1]} 61. Ke3 {[%clk 0:00:03.3]}
61... a5 {[%clk 0:00:37.1]} 62. Nc5 {[%clk 0:00:03.5]} 62... Bb4 {[%clk
0:00:36.4]} 63. Nd3 {[%clk 0:00:03.4]} 63... Be6 {[%clk 0:00:35.6]} 64. Nf4
{[%clk 0:00:03]} 64... Bc4 {[%clk 0:00:33.7]} 65. Ne2 {[%clk 0:00:02]} 65... f5
{[%clk 0:00:33.3]} 66. Nf4 {[%clk 0:00:01.9]} 66... Bc5+ {[%clk 0:00:32.8]} 67.
Kf3 {[%clk 0:00:02.4]} 67... Bd6 {[%clk 0:00:31.5]} 68. Ne2 {[%clk 0:00:02]}
68... Bd5+ {[%clk 0:00:30.2]} 69. Kf2 {[%clk 0:00:02.5]} 69... f4 {[%clk
0:00:30.3]} 70. Bc2 {[%clk 0:00:02.4]} 70... Bc5+ {[%clk 0:00:30.2]} 71. Kf1
{[%clk 0:00:02.9]} 71... f3 {[%clk 0:00:30.2]} 72. Nc3 {[%clk 0:00:03.2]} 72...
Bc4+ {[%clk 0:00:30]} 73. Ke1 {[%clk 0:00:03]} 73... f2+ {[%clk 0:00:30.3]} 74.
Kd2 {[%clk 0:00:02.9]} 74... f1=Q {[%clk 0:00:30]} 75. Ne4+ {[%clk 0:00:03.3]}
75... Kf4 {[%clk 0:00:29.4]} 76. Nxc5 {[%clk 0:00:03.3]} 76... Qf2+ {[%clk
0:00:29.4]} 77. Kc3 {[%clk 0:00:02.3]} 77... Qxc5 {[%clk 0:00:29.5]} 0-1

[Event "Late-Titled-Tuesday-Blitz-February-06-2024"]
[Site "Chess.com"]
[Date "2024.02.06"]
[Round "8"]
[White "alphienothere"]
[Black "prime-morty"]
[Result "1-0"]
[WhiteElo "2290"]
[BlackElo "2576"]
[TimeControl "180+1"]
[EndTime "15:30:19 PST"]
[Termination "alphienothere won by resignation"]

1. d4 {[%clk 0:02:59.8]} 1... d6 {[%clk 0:02:59.5]} 2. e4 {[%clk 0:02:57.8]}
2... Nf6 {[%clk 0:02:59.6]} 3. Nc3 {[%clk 0:02:55.9]} 3... e5 {[%clk 0:03:00.1]}
4. dxe5 {[%clk 0:02:52]} 4... dxe5 {[%clk 0:03:01]} 5. Qxd8+ {[%clk 0:02:52.5]}
5... Kxd8 {[%clk 0:03:01.8]} 6. Bc4 {[%clk 0:02:47.2]} 6... Ke8 {[%clk
0:03:00.7]} 7. Nf3 {[%clk 0:02:41]} 7... Bd6 {[%clk 0:02:59.5]} 8. O-O {[%clk
0:02:35.1]} 8... a6 {[%clk 0:02:54.6]} 9. Bg5 {[%clk 0:02:32.1]} 9... Nbd7
{[%clk 0:02:54]} 10. a4 {[%clk 0:02:28.9]} 10... h6 {[%clk 0:02:52.8]} 11. Bh4
{[%clk 0:02:21.6]} 11... g5 {[%clk 0:02:52.5]} 12. Bg3 {[%clk 0:02:21]} 12...
Nh5 {[%clk 0:02:53.1]} 13. Rad1 {[%clk 0:02:12.3]} 13... Nxg3 {[%clk 0:02:42.1]}
14. hxg3 {[%clk 0:02:09.7]} 14... Rb8 {[%clk 0:02:34.9]} 15. Rd3 {[%clk
0:02:04.5]} 15... Bb4 {[%clk 0:02:26.8]} 16. Nd5 {[%clk 0:01:52.6]} 16... Bd6
{[%clk 0:02:25.3]} 17. Rfd1 {[%clk 0:01:45.2]} 17... Nc5 {[%clk 0:02:25.2]} 18.
Ra3 {[%clk 0:01:25.1]} 18... Kf8 {[%clk 0:02:14.6]} 19. Nd2 {[%clk 0:01:12.8]}
19... c6 {[%clk 0:02:00.3]} 20. Nb6 {[%clk 0:01:09.8]} 20... Bg4 {[%clk
0:01:47.4]} 21. f3 {[%clk 0:01:10.1]} 21... Nd7 {[%clk 0:01:38.9]} 22. Nxd7+
{[%clk 0:01:05.4]} 22... Bxd7 {[%clk 0:01:39.1]} 23. Rd3 {[%clk 0:01:03.7]}
23... Bc5+ {[%clk 0:01:36.6]} 24. Kh2 {[%clk 0:01:00.7]} 24... Bc8 {[%clk
0:01:22.7]} 25. Rd8+ {[%clk 0:00:57.3]} 25... Kg7 {[%clk 0:01:22.5]} 26. Rxh8
{[%clk 0:00:55.6]} 26... Kxh8 {[%clk 0:01:23.4]} 27. Bxf7 {[%clk 0:00:52.9]}
27... Kg7 {[%clk 0:01:21.8]} 28. Bb3 {[%clk 0:00:51.8]} 28... b5 {[%clk
0:01:17.2]} 29. axb5 {[%clk 0:00:51.6]} 29... axb5 {[%clk 0:01:15.8]} 30. c3
{[%clk 0:00:51.9]} 30... Be7 {[%clk 0:01:05.1]} 31. Ra1 {[%clk 0:00:51.6]} 31...
Bb7 {[%clk 0:01:04.5]} 32. Ra7 {[%clk 0:00:51.1]} 32... Bc5 {[%clk 0:01:04.3]}
33. Ra1 {[%clk 0:00:50.9]} 33... Rd8 {[%clk 0:01:04.2]} 34. Nf1 {[%clk
0:00:50.5]} 34... Bf2 {[%clk 0:00:58.3]} 35. Rd1 {[%clk 0:00:50.2]} 35... Rxd1
{[%clk 0:00:56.6]} 36. Bxd1 {[%clk 0:00:51.1]} 36... c5 {[%clk 0:00:54.7]} 37.
g4 {[%clk 0:00:50.9]} 37... b4 {[%clk 0:00:51.5]} 38. g3 {[%clk 0:00:47.5]}
38... Ba6 {[%clk 0:00:48.7]} 39. Kg2 {[%clk 0:00:47.2]} 39... Be1 {[%clk
0:00:37.7]} 40. cxb4 {[%clk 0:00:47.3]} 40... cxb4 {[%clk 0:00:34.5]} 41. Ne3
{[%clk 0:00:47.4]} 41... Bd2 {[%clk 0:00:30.1]} 42. Nd5 {[%clk 0:00:47.5]} 42...
Bc4 {[%clk 0:00:26.9]} 43. b3 {[%clk 0:00:44]} 43... Bd3 {[%clk 0:00:25.2]} 44.
Kf2 {[%clk 0:00:41.2]} 44... Kf7 {[%clk 0:00:20.6]} 45. Be2 {[%clk 0:00:41]}
45... Bc2 {[%clk 0:00:20.8]} 46. Bc4 {[%clk 0:00:40.9]} 46... Kg7 {[%clk
0:00:19.3]} 47. Nc7 {[%clk 0:00:35]} 47... Bc3 {[%clk 0:00:15.2]} 48. Nb5 {[%clk
0:00:33.6]} 48... Bd2 {[%clk 0:00:12.7]} 49. Ke2 {[%clk 0:00:34]} 49... Bc1
{[%clk 0:00:12.4]} 50. Nc7 {[%clk 0:00:32.7]} 50... Kg6 {[%clk 0:00:09.7]} 51.
Nd5 {[%clk 0:00:30.2]} 51... Ba3 {[%clk 0:00:09.6]} 52. Kd2 {[%clk 0:00:29.5]}
52... Bb1 {[%clk 0:00:09.6]} 53. Bd3 {[%clk 0:00:29.6]} 53... Ba2 {[%clk
0:00:08.4]} 54. Bc2 {[%clk 0:00:28.9]} 54... h5 {[%clk 0:00:07.9]} 55. gxh5+
{[%clk 0:00:28.4]} 55... Kxh5 {[%clk 0:00:08.3]} 56. Kd3 {[%clk 0:00:29]} 56...
Kg6 {[%clk 0:00:06.4]} 57. Kc4 {[%clk 0:00:28.9]} 57... g4 {[%clk 0:00:03.5]}
58. fxg4 {[%clk 0:00:28.7]} 58... Kg5 {[%clk 0:00:04]} 59. Nxb4 {[%clk
0:00:29.1]} 59... Bxb4 {[%clk 0:00:02.9]} 60. Kxb4 {[%clk 0:00:30]} 60... Kxg4
{[%clk 0:00:03.5]} 61. Kc5 {[%clk 0:00:30.7]} 61... Kxg3 {[%clk 0:00:03.1]} 62.
b4 {[%clk 0:00:30.7]} 62... Kf4 {[%clk 0:00:01.5]} 63. b5 {[%clk 0:00:31.1]}
63... Be6 {[%clk 0:00:01.7]} 64. Kd6 {[%clk 0:00:31.1]} 64... Bc8 {[%clk
0:00:02]} 65. Kc7 {[%clk 0:00:31.4]} 65... Bf5 {[%clk 0:00:01]} 66. b6 {[%clk
0:00:31.8]} 66... Bxe4 {[%clk 0:00:01.1]} 67. Bxe4 {[%clk 0:00:31.7]} 67... Kxe4
{[%clk 0:00:01.7]} 68. b7 {[%clk 0:00:32.6]} 68... Kf3 {[%clk 0:00:02.2]} 69.
b8=Q {[%clk 0:00:33.5]} 69... e4 {[%clk 0:00:03.1]} 70. Qb7 {[%clk 0:00:31.2]}
70... Kf4 {[%clk 0:00:02.9]} 71. Qb4 {[%clk 0:00:30.4]} 71... Kf3 {[%clk
0:00:02.9]} 72. Qe1 {[%clk 0:00:28.8]} 72... e3 {[%clk 0:00:03]} 73. Kd6 {[%clk
0:00:29.7]} 73... e2 {[%clk 0:00:02.9]} 74. Kd5 {[%clk 0:00:30.6]} 74... Ke3
{[%clk 0:00:03.5]} 75. Ke5 {[%clk 0:00:30.7]} 75... Kf3 {[%clk 0:00:03.8]} 76.
Kd4 {[%clk 0:00:31.2]} 1-0